fUST/lending_fUST_20240824
["ID","MTS","AMOUNT","RATE_DAILY","PERIOD"]
[335730238,1724466654366,-151.0,0.00013972,2]
[335730239,1724466654375,-151.0,0.00013972,2]
[335730240,1724466654385,-500.0,0.00013972,2]
[335730241,1724466654394,-500.0,0.00013972,2]
[335730242,1724466654404,-151.0,0.00013972,2]
[335730243,1724466654413,-805.83,0.00013972,2]
[335730244,1724466654423,-151.0,0.00013972,2]
[335730245,1724466654432,-151.0,0.00013972,2]
[335730246,1724466654442,-500.0,0.00013972,2]
[335730247,1724466654451,-500.0,0.00013972,2]
[335730248,1724466654460,-1275.719266,0.00013972,2]
[335730249,1724466654470,-1275.719266,0.00013972,2]
[335730250,1724466654483,-1275.719266,0.00013972,2]
[335730251,1724466654492,-1275.719266,0.00013972,2]
[335730252,1724466654503,-561.44,0.00013972,2]
[335730253,1724466654513,-458.491436,0.00013972,2]
[335730254,1724466654526,-458.491436,0.00013972,2]
[335730255,1724466654536,-458.491436,0.00013972,2]
[335730256,1724466654547,-458.491436,0.00013972,2]
[335730257,1724466654556,-458.491436,0.00013972,2]
[335730258,1724466654567,-458.491436,0.00013972,2]
[335730259,1724466654576,-500.0,0.00013972,2]
[335730260,1724466654586,-510.28937839,0.00013972,2]
[335730261,1724466654596,-151.0,0.00013972,2]
[335730262,1724466654605,-151.195354,0.00013972,2]
[335730263,1724466654615,-500.0,0.00013972,2]
[335730264,1724466654627,-555.47,0.00013972,2]
[335730265,1724466654637,-857.32,0.00013972,2]
[335730266,1724466654650,-500.0,0.00013972,2]
[335730267,1724466654661,-630.44304182,0.00013972,2]
[335730268,1724466654671,-501.49956764,0.00013972,2]
[335730269,1724466654681,-500.0,0.00013972,2]
[335730270,1724466654690,-500.0,0.00013972,2]
[335730271,1724466654700,-489.20911,0.00013972,2]
[335730272,1724466654711,-489.20911,0.00013972,2]
[335730273,1724466654722,-500.0,0.00013972,2]
[335730274,1724466654732,-500.0,0.00013972,2]
[335730275,1724466654742,-500.0,0.00013972,2]
[335730276,1724466654752,-502.0307934,0.00013972,2]
[335730277,1724466654762,-2240.51,0.00013972,2]
[335730278,1724466654772,-500.0,0.00013972,2]
[335730279,1724466654782,-500.0,0.00013972,2]
[335730280,1724466654792,-500.0,0.00013972,2]
[335730281,1724466654803,-661.53,0.00013972,2]
[335730282,1724466654813,-500.0,0.00013972,2]
[335730283,1724466654822,-500.0,0.00013972,2]
[335730284,1724466654832,-500.0,0.00013972,2]
[335730285,1724466654842,-500.0,0.00013972,2]
[335730286,1724466654851,-500.0,0.00013972,2]
[335730287,1724466654863,-527.49750531,0.00013972,2]
[335730288,1724466654873,-502.25288442,0.00013972,2]
[335730289,1724466654883,-574.69944032,0.00013972,2]
[335730290,1724466654893,-500.0,0.00013972,2]
[335730291,1724466654903,-692.62,0.00013972,2]
[335730292,1724466654913,-500.0,0.00013972,2]
[335730293,1724466654923,-500.0,0.00013972,2]
[335730294,1724466654933,-723.3,0.00013972,2]
[335730295,1724466654942,-500.0,0.00013972,2]
[335730296,1724466654953,-706.09,0.00013972,2]
[335730297,1724466654972,-500.0,0.00013972,2]
[335730298,1724466654981,-500.0,0.00013972,2]
[335730299,1724466654991,-500.0,0.00013972,2]
[335730300,1724466655001,-500.0,0.00013972,2]
[335730301,1724466655012,-500.0,0.00013972,2]
[335730302,1724466655022,-500.0,0.00013972,2]
[335730303,1724466655031,-980.58,0.00013972,2]
[335730304,1724466655041,-500.0,0.00013972,2]
[335730305,1724466655051,-701.58,0.00013972,2]
[335730306,1724466655061,-151.0,0.00013972,2]
[335730307,1724466655072,-500.0,0.00013972,2]
[335730308,1724466655081,-151.0,0.00013972,2]
[335730309,1724466655094,-151.0,0.00013972,2]
[335730310,1724466655103,-151.0,0.00013972,2]
[335730311,1724466655114,-500.0,0.00013972,2]
[335730312,1724466655124,-151.0,0.00013972,2]
[335730313,1724466655136,-500.0,0.00013972,2]
[335730314,1724466655147,-151.0,0.00013972,2]
[335730315,1724466655159,-577.42,0.00013972,2]
[335730316,1724466655168,-500.0,0.00013972,2]
[335730317,1724466655178,-151.0,0.00013972,2]
[335730318,1724466655187,-151.0,0.00013972,2]
[335730319,1724466655197,-151.0,0.00013972,2]
[335730320,1724466655207,-151.0,0.00013972,2]
[335730321,1724466655216,-500.97681294,0.00013972,2]
[335730322,1724466655225,-500.0,0.00013972,2]
[335730323,1724466655234,-151.0,0.00013972,2]
[335730324,1724466655244,-757.32,0.00013972,2]
[335730325,1724466655253,-151.0,0.00013972,2]
[335730326,1724466655264,-151.0,0.00013972,2]
[335730327,1724466655273,-500.0,0.00013972,2]
[335730328,1724466655282,-500.0,0.00013972,2]
[335730329,1724466655292,-500.0,0.00013972,2]
[335730330,1724466655303,-500.0,0.00013972,2]
[335730331,1724466655314,-500.0,0.00013972,2]
[335730332,1724466655324,-500.0,0.00013972,2]
[335730333,1724466655336,-500.0,0.00013972,2]
[335730334,1724466655351,-2029.48,0.00013972,2]
[335730335,1724466655361,-500.0,0.00013972,2]
[335730336,1724466655371,-500.61120877,0.00013972,2]
[335730337,1724466655383,-582.02,0.00013972,2]
[335730338,1724466655394,-500.0,0.00013972,2]
[335730339,1724466655404,-567.26,0.00013972,2]
[335730340,1724466655415,-827.41,0.00013972,2]
[335730341,1724466655427,-214.938096,0.00013972,2]
[335730342,1724466655439,-214.938096,0.00013972,2]
[335730343,1724466655452,-214.938096,0.00013972,2]
[335730344,1724466655462,-551.53866785,0.00013972,2]
[335730345,1724466655471,-214.938096,0.00013972,2]
[335730346,1724466655480,-214.938096,0.00013972,2]
[335730347,1724466655490,-214.938096,0.00013972,2]
[335730348,1724466655499,-500.0,0.00013972,2]
[335730349,1724466655508,-500.0,0.00013972,2]
[335730350,1724466655518,-1222.74,0.00013972,2]
[335730351,1724466655528,-500.0,0.00013972,2]
[335730352,1724466655537,-642.74,0.00013972,2]
[335730353,1724466655546,-500.0,0.00013972,2]
[335730354,1724466655555,-505.25961884,0.00013972,2]
[335730355,1724466655565,-500.0,0.00013972,2]
[335730356,1724466655574,-1493.42,0.00013972,2]
[335730357,1724466655584,-940.12,0.00013972,2]
[335730358,1724466655595,-500.0,0.00013972,2]
[335730359,1724466655606,-500.0,0.00013972,2]
[335730360,1724466655618,-500.0,0.00013972,2]
[335730361,1724466655628,-1041.28,0.00013972,2]
[335730362,1724466655640,-505.9060844,0.00013972,2]
[335730363,1724466655650,-500.0,0.00013972,2]
[335730364,1724466655660,-500.0,0.00013972,2]
[335730365,1724466655670,-500.0,0.00013972,2]
[335730366,1724466655679,-755.36,0.00013972,2]
[335730367,1724466655689,-725.52,0.00013972,2]
[335730368,1724466655698,-1101.58,0.00013972,2]
[335730369,1724466655707,-1720.25,0.00013972,2]
[335730370,1724466655716,-500.0,0.00013972,2]
[335730371,1724466655725,-526.06,0.00013972,2]
[335730372,1724466655735,-500.0,0.00013972,2]
[335730373,1724466655744,-2012.03,0.00013972,2]
[335730374,1724466655754,-500.0,0.00013972,2]
[335730375,1724466655763,-500.0,0.00013972,2]
[335730376,1724466655772,-500.0,0.00013972,2]
[335730377,1724466655782,-941.91,0.00013972,2]
[335730378,1724466655792,-500.0,0.00013972,2]
[335730379,1724466655801,-500.0,0.00013972,2]
[335730380,1724466655810,-529.54190491,0.00013972,2]
[335730381,1724466655820,-500.0,0.00013972,2]
[335730382,1724466655830,-500.0,0.00013972,2]
[335730383,1724466655839,-559.96,0.00013972,2]
[335730384,1724466655848,-501.86672795,0.00013972,2]
[335730385,1724466655857,-500.0,0.00013972,2]
[335730386,1724466655867,-500.0,0.00013972,2]
[335730387,1724466655876,-500.0,0.00013972,2]
[335730388,1724466655887,-500.0,0.00013972,2]
[335730389,1724466655896,-500.0,0.00013972,2]
[335730390,1724466655906,-500.0,0.00013972,2]
[335730391,1724466655915,-3650.56,0.00013972,2]
[335730392,1724466655924,-1072.49,0.00013972,2]
[335730393,1724466655934,-500.0,0.00013972,2]
[335730394,1724466655943,-543.42,0.00013972,2]
[335730395,1724466655953,-500.0,0.00013972,2]
[335730396,1724466655963,-1135.22,0.00013972,2]
[335730397,1724466655973,-501.33843151,0.00013972,2]
[335730398,1724466655983,-151.386232,0.00013972,2]
[335730399,1724466655992,-748.81,0.00013972,2]
[335730400,1724466656001,-473.13330551,0.00013972,2]
[335730401,1724466656011,-500.0,0.00013972,2]
[335730402,1724466656021,-500.0,0.00013972,2]
[335730403,1724466656029,-500.0,0.00013972,2]
[335730404,1724466656040,-429.106039,0.00013972,2]
[335730405,1724466656050,-500.0,0.00013972,2]
[335730406,1724466656061,-429.106039,0.00013972,2]
[335730407,1724466656070,-429.106039,0.00013972,2]
[335730408,1724466656079,-254.71393384,0.00013972,2]
[335730409,1724466656089,-500.0,0.00013972,2]
[335730410,1724466656097,-429.106039,0.00013972,2]
[335730411,1724466656107,-547.69074638,0.00013972,2]
[335730412,1724466656116,-429.106039,0.00013972,2]
[335730413,1724466656125,-429.106039,0.00013972,2]
[335730414,1724466656134,-285.982218,0.00013972,2]
[335730415,1724466656144,-500.0,0.00013972,2]
[335730416,1724466656153,-851.61,0.00013972,2]
[335730417,1724466656163,-968.7,0.00013972,2]
[335730418,1724466656173,-517.12,0.00013972,2]
[335730419,1724466656182,-557.22,0.00013972,2]
[335730420,1724466656191,-181.031769,0.00013972,2]
[335730421,1724466656200,-590.96582078,0.00013972,2]
[335730422,1724466656209,-181.031769,0.00013972,2]
[335730423,1724466656219,-181.031769,0.00013972,2]
[335730424,1724466656229,-500.0,0.00013972,2]
[335730425,1724466656238,-181.031769,0.00013972,2]
[335730426,1724466656247,-181.031769,0.00013972,2]
[335730427,1724466656256,-181.031769,0.00013972,2]
[335730428,1724466656266,-181.031769,0.00013972,2]
[335730429,1724466656275,-181.031769,0.00013972,2]
[335730430,1724466656414,-685.03,0.00013972,2]
[335730431,1724466656425,-500.0,0.00013972,2]
[335730432,1724466656434,-500.0,0.00013972,2]
[335730433,1724466656443,-670.24,0.00013972,2]
[335730434,1724466656452,-218.08046005,0.00013972,2]
[335730435,1724466656483,-427.76953995,0.00013972,2]
[335730436,1724466656492,-84.60477694,0.00013972,2]
[335730437,1724466657323,-153.0,0.0001292,2]
[335730438,1724466657333,-364.43752269,0.00013699,2]
[335730439,1724466657351,-4465.13238231,0.00013699,2]
[335730440,1724466657360,-415.39522306,0.00013972,2]
[335730441,1724466657370,-500.0,0.00013972,2]
[335730442,1724466657381,-500.0,0.00013972,2]
[335730443,1724466657391,-148.87105319,0.00013972,2]
[335730444,1724466657411,-351.12894681,0.00013972,2]
[335730445,1724466657423,-3040.48,0.00013972,2]
[335730446,1724466657434,-1293.77,0.00013972,2]
[335730447,1724466657446,-665.67,0.00013972,2]
[335730448,1724466657456,-993.52,0.00013972,2]
[335730449,1724466657466,-1081.0,0.00013972,2]
[335730450,1724466657475,-500.0,0.00013972,2]
[335730451,1724466657485,-500.0,0.00013972,2]
[335730452,1724466657494,-500.0,0.00013972,2]
[335730453,1724466657503,-722.24,0.00013972,2]
[335730454,1724466657513,-500.0,0.00013972,2]
[335730455,1724466657522,-601.83,0.00013972,2]
[335730456,1724466657531,-579.9,0.00013972,2]
[335730457,1724466657541,-500.0,0.00013972,2]
[335730458,1724466657550,-1302.1,0.00013972,2]
[335730459,1724466657559,-500.0,0.00013972,2]
[335730460,1724466657569,-1779.05,0.00013972,2]
[335730461,1724466657581,-500.0,0.00013972,2]
[335730462,1724466657591,-500.0,0.00013972,2]
[335730463,1724466657602,-500.0,0.00013972,2]
[335730464,1724466657613,-500.0,0.00013972,2]
[335730465,1724466657624,-500.0,0.00013972,2]
[335730466,1724466657636,-500.0,0.00013972,2]
[335730467,1724466657648,-500.0,0.00013972,2]
[335730468,1724466657658,-689.73,0.00013972,2]
[335730469,1724466657668,-500.0,0.00013972,2]
[335730470,1724466657678,-500.0,0.00013972,2]
[335730471,1724466657689,-500.0,0.00013972,2]
[335730472,1724466657698,-544.01843689,0.00013972,2]
[335730473,1724466657708,-500.0,0.00013972,2]
[335730474,1724466657717,-500.0,0.00013972,2]
[335730475,1724466657727,-500.0,0.00013972,2]
[335730476,1724466657736,-807.8,0.00013972,2]
[335730477,1724466657746,-500.0,0.00013972,2]
[335730478,1724466657755,-438.55210524,0.00013972,2]
[335730479,1724466657766,-500.0,0.00013972,2]
[335730480,1724466657776,-500.0,0.00013972,2]
[335730481,1724466657788,-500.0,0.00013972,2]
[335730482,1724466657799,-500.0,0.00013972,2]
[335730483,1724466657810,-516.33699038,0.00013972,2]
[335730484,1724466657820,-880.07,0.00013972,2]
[335730485,1724466657831,-500.0,0.00013972,2]
[335730486,1724466657840,-3308.33,0.00013972,2]
[335730487,1724466657850,-220.157913,0.00013972,2]
[335730488,1724466657860,-220.157913,0.00013972,2]
[335730489,1724466657870,-220.157913,0.00013972,2]
[335730490,1724466657879,-220.157913,0.00013972,2]
[335730491,1724466657888,-500.0,0.00013972,2]
[335730492,1724466657898,-897.43,0.00013972,2]
[335730493,1724466657908,-536.7811588,0.00013972,2]
[335730494,1724466657918,-500.0,0.00013972,2]
[335730495,1724466657927,-500.0,0.00013972,2]
[335730496,1724466657936,-220.157913,0.00013972,2]
[335730497,1724466657946,-220.157913,0.00013972,2]
[335730498,1724466657955,-500.0,0.00013972,2]
[335730499,1724466657965,-220.157913,0.00013972,2]
[335730500,1724466657975,-220.157913,0.00013972,2]
[335730501,1724466657985,-500.0,0.00013972,2]
[335730502,1724466657995,-500.0,0.00013972,2]
[335730503,1724466658005,-3011.33,0.00013972,2]
[335730504,1724466658015,-1558.888308,0.00013972,2]
[335730505,1724466658028,-1558.888308,0.00013972,2]
[335730506,1724466658037,-1558.888308,0.00013972,2]
[335730507,1724466658047,-1558.888308,0.00013972,2]
[335730508,1724466658056,-568.68,0.00013972,2]
[335730509,1724466658066,-1558.888308,0.00013972,2]
[335730510,1724466658075,-1013.03756239,0.00013972,2]
[335730511,1724466658819,-545.85074561,0.00013972,2]
[335730512,1724466658829,-1558.888308,0.00013972,2]
[335730513,1724466658842,-1558.888308,0.00013972,2]
[335730514,1724466658852,-500.0,0.00013972,2]
[335730515,1724466658863,-1094.73,0.00013972,2]
[335730516,1724466658873,-502.96448523,0.00013972,2]
[335730517,1724466658883,-500.0,0.00013972,2]
[335730518,1724466658892,-500.0,0.00013972,2]
[335730519,1724466658901,-543.57,0.00013972,2]
[335730520,1724466658911,-826.35,0.00013972,2]
[335730521,1724466658920,-500.0,0.00013972,2]
[335730522,1724466658931,-500.0,0.00013972,2]
[335730523,1724466658942,-500.0,0.00013972,2]
[335730524,1724466658954,-450.99034216,0.00013972,2]
[335730525,1724466658964,-500.0,0.00013972,2]
[335730526,1724466658974,-500.0,0.00013972,2]
[335730527,1724466658984,-987.32,0.00013972,2]
[335730528,1724466658996,-2833.87,0.00013972,2]
[335730529,1724466659008,-500.0,0.00013972,2]
[335730530,1724466659019,-576.47,0.00013972,2]
[335730531,1724466659030,-500.0,0.00013972,2]
[335730532,1724466659040,-500.40193934,0.00013972,2]
[335730533,1724466659052,-586.35,0.00013972,2]
[335730534,1724466659062,-545.11056354,0.00013972,2]
[335730535,1724466659072,-500.0,0.00013972,2]
[335730536,1724466659083,-500.0,0.00013972,2]
[335730537,1724466659095,-500.0,0.00013972,2]
[335730538,1724466659105,-239.87380843,0.00013972,2]
[335730539,1724466659115,-500.0,0.00013972,2]
[335730540,1724466659126,-500.0,0.00013972,2]
[335730541,1724466659137,-500.0,0.00013972,2]
[335730542,1724466659149,-500.0,0.00013972,2]
[335730543,1724466659160,-123.02976591,0.00013972,2]
[335730544,1724466659173,-640.34023409,0.00013972,2]
[335730545,1724466659183,-500.54110575,0.00013972,2]
[335730546,1724466659192,-501.14051826,0.00013972,2]
[335730547,1724466659201,-631.52,0.00013972,2]
[335730548,1724466659211,-566.24317912,0.00013972,2]
[335730549,1724466659220,-509.32094595,0.00013972,2]
[335730550,1724466659229,-500.0,0.00013972,2]
[335730551,1724466659239,-581.22,0.00013972,2]
[335730552,1724466659248,-500.0,0.00013972,2]
[335730553,1724466659258,-500.0,0.00013972,2]
[335730554,1724466659269,-500.0,0.00013972,2]
[335730555,1724466659279,-585.31,0.00013972,2]
[335730556,1724466659289,-508.13,0.00013972,2]
[335730557,1724466659299,-151.0,0.00013972,2]
[335730558,1724466659308,-500.0,0.00013972,2]
[335730559,1724466659317,-151.0,0.00013972,2]
[335730560,1724466659326,-151.0,0.00013972,2]
[335730561,1724466659338,-669.16,0.00013972,2]
[335730562,1724466659352,-151.0,0.00013972,2]
[335730563,1724466659361,-151.0,0.00013972,2]
[335730564,1724466659371,-719.91,0.00013972,2]
[335730565,1724466659380,-151.0,0.00013972,2]
[335730566,1724466659390,-500.0,0.00013972,2]
[335730567,1724466659399,-2195.68,0.00013972,2]
[335730568,1724466659410,-500.0,0.00013972,2]
[335730569,1724466659423,-153.44383373,0.00013972,2]
[335730570,1724466659435,-500.0,0.00013972,2]
[335730571,1724466659447,-500.0,0.00013972,2]
[335730572,1724466659458,-1418.99,0.00013972,2]
[335730573,1724466659469,-562.79,0.00013972,2]
[335730574,1724466659479,-694.96,0.00013972,2]
[335730575,1724466659488,-151.0,0.00013972,2]
[335730576,1724466659497,-151.355643,0.00013972,2]
[335730577,1724466659506,-1386.043391,0.00013972,2]
[335730578,1724466659515,-1083.43217,0.00013972,2]
[335730579,1724466659524,-1386.043391,0.00013972,2]
[335730580,1724466659533,-1083.43217,0.00013972,2]
[335730581,1724466659543,-1386.043391,0.00013972,2]
[335730582,1724466659552,-1083.43217,0.00013972,2]
[335730583,1724466659561,-1083.43217,0.00013972,2]
[335730584,1724466659570,-605.95150408,0.00013972,2]
[335730585,1724466659579,-500.0,0.00013972,2]
[335730586,1724466659589,-1386.043391,0.00013972,2]
[335730587,1724466659599,-1386.043391,0.00013972,2]
[335730588,1724466659608,-1386.043391,0.00013972,2]
[335730589,1724466659617,-500.0,0.00013972,2]
[335730590,1724466659626,-1083.43217,0.00013972,2]
[335730591,1724466659635,-1083.43217,0.00013972,2]
[335730592,1724466659644,-500.0,0.00013972,2]
[335730593,1724466659654,-1083.43217,0.00013972,2]
[335730594,1724466659664,-500.0,0.00013972,2]
[335730595,1724466659674,-1083.43217,0.00013972,2]
[335730596,1724466659683,-500.0,0.00013972,2]
[335730597,1724466659692,-500.0,0.00013972,2]
[335730598,1724466659702,-1010.78,0.00013972,2]
[335730599,1724466659711,-500.0,0.00013972,2]
[335730600,1724466659720,-500.0,0.00013972,2]
[335730601,1724466659729,-500.0,0.00013972,2]
[335730602,1724466659740,-859.88,0.00013972,2]
[335730603,1724466659751,-500.0,0.00013972,2]
[335730604,1724466659763,-500.0,0.00013972,2]
[335730605,1724466659773,-240.678103,0.00013972,2]
[335730606,1724466659782,-240.678103,0.00013972,2]
[335730607,1724466659790,-240.678103,0.00013972,2]
[335730608,1724466659800,-500.0,0.00013972,2]
[335730609,1724466659810,-1006.78,0.00013972,2]
[335730610,1724466659819,-1520.93,0.00013972,2]
[335730611,1724466659827,-240.678103,0.00013972,2]
[335730612,1724466659837,-675.71,0.00013972,2]
[335730613,1724466659848,-240.678103,0.00013972,2]
[335730614,1724466659857,-151.0,0.00013972,2]
[335730615,1724466659867,-188.37051294,0.00013972,2]
[335730630,1724467074846,1503.69614752,0.0001211,2]
[335730646,1724467559123,-300.0,0.00012172,2]
[335730647,1724467559145,-300.0,0.00012172,2]
[335730648,1724467559167,-24900.0,0.00012216,2]
[335730649,1724467559187,-156.6892152,0.00012668,2]
[335730650,1724467559209,-163.134388,0.00012768,2]
[335730651,1724467559231,-163.134388,0.00012816,2]
[335730652,1724467559253,-163.134388,0.00012864,2]
[335730653,1724467559274,-163.134388,0.00012911,2]
[335730654,1724467559295,-163.134388,0.00012959,2]
[335730655,1724467559317,-163.134388,0.00013006,2]
[335730656,1724467559337,-216.50065594,0.00013025,2]
[335730657,1724467559358,-156.30170795,0.00013025,2]
[335730658,1724467559380,-163.134388,0.00013054,2]
[335730659,1724467559401,-163.134388,0.00013101,2]
[335730660,1724467559424,-163.134388,0.00013149,2]
[335730661,1724467559446,-163.134388,0.00013196,2]
[335730662,1724467559467,-163.134388,0.00013244,2]
[335730663,1724467559490,-163.134388,0.00013291,2]
[335730664,1724467559513,-155.14157528,0.00013325,2]
[335730666,1724467601048,192.0965735,0.00012072,2]
[335730667,1724467614106,-160.53217945,0.00013325,2]
[335730671,1724467627131,-163.134388,0.00012589,2]
[335730672,1724467627154,-163.134388,0.00012917,2]
[335730673,1724467627176,-163.134388,0.00013245,2]
[335730674,1724467627199,-632.76795675,0.00013325,2]
[335730676,1724467632127,-554.48253203,0.00013325,2]
[335730677,1724467643100,-445.47161438,0.00013325,2]
[335730682,1724467749137,-166.85499623,0.00012999,2]
[335731128,1724467838091,-300.0,0.00012988,2]
[335731129,1724467838101,-300.0,0.00012988,2]
[335731130,1724467838111,-120.84043094,0.00012989,2]
[335731131,1724467838123,-806.37061774,0.00012989,2]
[335731132,1724467838135,-1243.01888829,0.00012989,2]
[335731133,1724467838145,-1098.15,0.00013,2]
[335731134,1724467838154,-409.2733729,0.00013425,2]
[335731135,1724467838163,-409.2733729,0.00013425,2]
[335731136,1724467838172,-409.2733729,0.00013425,2]
[335731137,1724467838181,-409.2733729,0.00013425,2]
[335731138,1724467838190,-409.2733729,0.00013425,2]
[335731139,1724467838199,-409.2733729,0.00013425,2]
[335731141,1724467838209,-409.2733729,0.00013425,2]
[335731143,1724467838218,-409.2733729,0.00013425,2]
[335731145,1724467838228,-409.2733729,0.00013425,2]
[335731147,1724467838237,-409.2733729,0.00013425,2]
[335731149,1724467838246,-409.2733729,0.00013425,2]
[335731150,1724467838255,-409.2733729,0.00013425,2]
[335731152,1724467838264,-2596.97571274,0.00013497,2]
[335731153,1724467838272,-1105.80632101,0.00013497,2]
[335731154,1724467838282,-2473.52688903,0.00013498,2]
[335731155,1724467838291,-801.8994963,0.00013595,2]
[335731156,1724467838300,-801.89949628,0.00013596,2]
[335731157,1724467838309,-157.50584586,0.00013596,2]
[335731158,1724467838318,-493.47055315,0.00013596,2]
[335731160,1724467838327,-177.45634346,0.00013596,2]
[335731162,1724467838337,-154.72922386,0.00013596,2]
[335731164,1724467838346,-603.39236087,0.00013596,2]
[335731166,1724467838355,-155.01540453,0.00013596,2]
[335731168,1724467838364,-155.04440811,0.00013596,2]
[335731170,1724467838373,-522.85595405,0.00013596,2]
[335731172,1724467838383,-801.89949628,0.00013597,2]
[335731174,1724467838392,-155.24629628,0.00013597,2]
[335731175,1724467838401,-154.71377951,0.00013597,2]
[335731177,1724467838410,-154.91707256,0.00013597,2]
[335731179,1724467838419,-862.83835129,0.00013597,2]
[335731181,1724467838429,-340.1808777,0.00013597,2]
[335731183,1724467838438,-243.91206711,0.00013597,2]
[335731185,1724467838447,-801.89949628,0.00013597,2]
[335731188,1724467838457,-1623.69600156,0.00013598,2]
[335731190,1724467838466,-801.89949628,0.00013598,2]
[335731192,1724467838477,-40000.0,0.00013598,2]
[335731194,1724467838486,-88888.0,0.00013598,2]
[335731196,1724467838495,-2000.0,0.00013598,2]
[335731198,1724467838504,-301.66413705,0.00013599,2]
[335731199,1724467838513,-330.34591361,0.00013599,2]
[335731201,1724467838522,-500.80603025,0.00013673,2]
[335731203,1724467838531,-500.0,0.00013673,2]
[335731205,1724467838540,-362.82322174,0.00013688,2]
[335731207,1724467838548,-153.0,0.00013695,2]
[335731209,1724467838558,-153.0,0.00013695,2]
[335731211,1724467838567,-153.0,0.00013695,2]
[335731213,1724467838575,-153.0,0.00013695,2]
[335731215,1724467838585,-153.0,0.00013695,2]
[335731217,1724467838594,-153.0,0.00013695,2]
[335731219,1724467838603,-153.0,0.00013695,2]
[335731221,1724467838611,-153.0,0.00013695,2]
[335731223,1724467838620,-153.0,0.00013695,2]
[335731225,1724467838630,-153.0,0.00013695,2]
[335731227,1724467838639,-153.0,0.00013695,2]
[335731229,1724467838649,-153.0,0.00013695,2]
[335731231,1724467838658,-153.0,0.00013695,2]
[335731233,1724467838667,-153.0,0.00013695,2]
[335731235,1724467838676,-153.0,0.00013695,2]
[335731237,1724467838685,-153.0,0.00013695,2]
[335731238,1724467838694,-153.0,0.00013695,2]
[335731240,1724467838703,-153.0,0.00013695,2]
[335731242,1724467838712,-153.0,0.00013695,2]
[335731244,1724467838721,-153.0,0.00013695,2]
[335731246,1724467838730,-153.0,0.00013695,2]
[335731248,1724467838740,-153.0,0.00013695,2]
[335731249,1724467838749,-153.0,0.00013695,2]
[335731250,1724467838757,-153.0,0.00013695,2]
[335731251,1724467838766,-153.0,0.00013695,2]
[335731252,1724467838775,-153.0,0.00013695,2]
[335731253,1724467838784,-153.0,0.00013695,2]
[335731255,1724467838793,-153.0,0.00013695,2]
[335731256,1724467838804,-153.0,0.00013695,2]
[335731257,1724467838813,-153.0,0.00013695,2]
[335731258,1724467838822,-153.0,0.00013695,2]
[335731259,1724467838830,-153.0,0.00013695,2]
[335731260,1724467838839,-153.0,0.00013695,2]
[335731261,1724467838849,-153.0,0.00013695,2]
[335731262,1724467838859,-153.0,0.00013695,2]
[335731263,1724467838867,-153.0,0.00013695,2]
[335731264,1724467838877,-153.0,0.00013695,2]
[335731265,1724467838886,-153.0,0.00013695,2]
[335731266,1724467838895,-153.0,0.00013695,2]
[335731267,1724467838905,-153.0,0.00013695,2]
[335731268,1724467838914,-153.0,0.00013695,2]
[335731269,1724467838923,-153.0,0.00013695,2]
[335731270,1724467838932,-153.0,0.00013695,2]
[335731271,1724467838941,-153.0,0.00013695,2]